Workbook

Sheet 연구비 사용 실적
B1: 인공지능융합혁신인재양성사업 창의자율과제 연구비 사용 실적
R3: 금액(원)
B4: 예산항목 | E4: 구분 | F4: 세부내역 | N4: 금액(A) | O4: 사용금액(B) | P4: 사용잔액(C=A-B) | Q4: 집행률(B/A×100) | R4: 비고
B7: 직접비 | C7: 학생인건비 | E7: 석사 1명 | F7: 100000 | G7: 원 | H7: x | I7: 12 | J7: 개월 | K7: x | L7: 1 | M7: 명= | N7: =F7*I7*L7 -> 1200000 | O7: 500000 | P7: =N7-O7 -> 700000 | Q7: =ROUND(O7/N7*100,-1)&"%" -> 40% | R7: 바이오AI융합학과 학생은 센터에서 (석사70만원, 박사100만원)지원 합니다. 추가로 지원하시는 금액만 적어주세요
E8: 박사 1명 | F8: 100000 | G8: 원 | H8: x | I8: 12 | J8: 개월 | K8: x | L8: 1 | M8: 명= | N8: =F8*I8*L8 -> 1200000 | O8: 800000 | P8: =N8-O8 -> 400000 | Q8: =ROUND(O8/N8*100,-1)&"%" -> 70%
C9: 연구재료비 | E9: *** 분석을 위한 시약 등 | F9: 100000 | G9: 원 | H9: x | I9: 50 | J9: 개 | K9: x | M9: = | N9: =F9*I9 -> 5000000 | O9: 700000 | P9: 4300000 | Q9: =ROUND(O9/N9*100,-1)&"%" -> 10%
C10: 연구활동비 | D10: 국내여비 | E10: 책임급 | F10: 100000 | G10: 원 | H10: x | I10: 3 | J10: 명 | K10: x | L10: 3 | M10: 회= | N10: =F10*I10*L10 -> 900000 | O10: 900000 | P10: 0 | Q10: 100%
D11: 국외여비 | E11: 학회참석(캐나다) | F11: 100000 | G11: 원 | H11: x | I11: 1 | J11: 명 | K11: x | L11: 1 | M11: 회= | N11: =F11*I11*L11 -> 100000 | O11: 50000 | P11: 50000 | Q11: 50%
D12: 시험분석료 | E12: *** 시험분석료 | F12: 70000 | G12: 원 | H12: x | I12: 30 | J12: 건 | K12: x | L12: 1 | M12: 회= | N12: 2100000 | O12: 1800000 | P12: 300000 | Q12: 90%
D13: 논문게재비 | E13: 논문게재비 | F13: 1000000 | G13: 원 | H13: x | I13: 1 | J13: 건 | K13: x | L13: 1 | M13: 회= | N13: 1000000 | O13: 500000 | P13: 500000 | Q13: 50%
D14: 전문가활용비 | E14: 자문료 or 강사료 | F14: 300000 | G14: 원 | H14: x | I14: 1 | J14: 시간 | K14: x | L14: 1 | M14: 회= | N14: 300000 | O14: 115000 | P14: 185000 | Q14: 40%
D15: 문헌구입비 | E15: 국내서적 | F15: 30000 | G15: 원 | H15: x | I15: 1 | J15: 권 | M15: = | N15: =F15*I15 -> 30000 | O15: 10000 | P15: 20000 | Q15: 30%
D16: 소프트웨어구입비 | E16: *** 소프트웨어 구입(범용소프트웨어 불가) | N16: 1000000 | O16: - | P16: - | Q16: -
D17: 기술정보수집비 외 | E17: *** 조사 용역 | N17: 1000000 | O17: - | P17: - | Q17: -
D18: 세미나개최 및 참가비 | E18: 국내 학회참가비 | F18: 100000 | G18: 원 | H18: x | I18: 3 | J18: 명 | K18: x | L18: 3 | M18: 회= | N18: =F18*I18*L18 -> 900000 | O18: 720000 | P18: 180000 | Q18: 80%
D19: 회의비 | E19: 회의비 | F19: 30000 | G19: 원 | H19: x | I19: 3 | J19: 명 | K19: x | L19: 3 | M19: 회= | N19: =F19*I19*L19 -> 270000 | O19: 180000 | P19: 90000 | Q19: 70%
D20: 사무용품비 | E20: 사무용품비 | F20: 500000 | G20: 원 | H20: x | I20: 1 | J20: 회 | M20: = | N20: =F20*I20 -> 500000 | O20: 280000 | P20: 220000 | Q20: 60%
C21: 연구활동비 소계 | N21: =SUM(N10:N20) -> 8100000 | O21: =SUM(O10:O20) -> 4555000 | P21: =N21-O21 -> 3545000 | Q21: 60%
B22: 합계 | N22: =SUM(N7:N20) -> 15500000 | O22: =SUM(O7:O20) -> 6555000 | P22: 8945000 | Q22: 40%
B24: * 붉은색 글씨(세부내역)를 수정하시면 금액이 자동으로 입력됩니다.
